bitfinex/quotes_ETHUSD_20260314
["timestamp","ask_amount","ask_price","bid_price","bid_amount"]
[1773482506826,0.48744719,2069.0,2068.6,1.20961018]
[1773482507676,0.48744719,2069.0,2068.6,0.0011]
[1773482507882,0.48744719,2069.0,2068.6,1.25798709]
[1773482510002,0.001,2069.1,2068.7,0.42767895]
[1773482510203,0.001,2069.1,2068.9,0.42767895]
[1773482510380,0.001,2069.1,2069.0,0.04833252]
[1773482510590,0.001,2069.1,2068.9,0.47601381]
[1773482511394,0.001,2069.1,2068.9,0.42767895]
[1773482511784,0.001,2069.1,2068.9,0.47601381]
[1773482515594,0.001,2069.3,2069.0,0.42767895]
[1773482516601,0.49685277,2069.3,2069.0,0.42767895]
[1773482516800,0.49685277,2069.3,2069.0,1.63596508]
[1773482519025,0.49685277,2069.3,2069.0,1.20828613]
[1773482519326,0.49585277,2069.2,2068.8,1.2094855]
[1773482519494,0.49585277,2069.2,2068.9,0.04833486]
[1773482521126,0.49585277,2069.2,2068.9,1.25665467]
[1773482521626,0.49585277,2069.2,2068.9,1.68333362]
[1773482521930,0.49685277,2069.3,2069.0,0.42667895]
[1773482522123,0.001,2069.3,2069.0,0.42667895]
[1773482522528,0.49685277,2069.3,2069.0,0.42667895]
[1773482523128,0.49685277,2069.3,2068.9,1.25665467]
[1773482523332,0.49685277,2069.3,2068.9,1.20831981]
[1773482523514,0.49585277,2069.2,2068.8,1.63617614]
[1773482524900,0.49585277,2069.0,2068.5,0.0011]
[1773482526928,1.20837159,2068.9,2068.5,0.0011]
[1773482527231,0.49585277,2068.8,2068.5,0.0011]
[1773482529416,1.70428277,2068.8,2068.7,0.0011]
[1773482531317,0.49585277,2068.8,2068.7,0.0011]
[1773482536142,0.49585277,2068.7,2068.5,0.0011]
[1773482538122,1.70439961,2068.6,2068.5,0.0011]
[1773482548454,0.48569393,2068.5,2068.2,0.0011]
[1773482548751,0.48569393,2068.5,2068.0,0.0011]
[1773482549754,0.48569393,2068.3,2068.0,0.0011]
[1773482552360,1.69443381,2068.3,2068.0,0.0011]
[1773482553159,0.48569393,2068.5,2068.0,0.39058819]
[1773482553462,0.48569393,2068.5,2068.2,0.0011]
[1773482553629,0.48669393,2068.5,2068.2,0.0011]
[1773482554553,0.48569393,2068.4,2068.2,0.0011]
[1773482556555,1.20964451,2068.5,2068.2,0.39058819]
[1773482557338,1.69534763,2068.5,2068.2,0.0011]
[1773482557537,0.48669393,2068.5,2068.2,0.0011]
[1773482557963,0.48669393,2068.5,2068.2,0.39058819]
[1773482559767,0.001,2068.5,2068.2,0.39058819]
[1773482560265,1.20960656,2068.5,2068.2,0.39058819]
[1773482561268,0.001,2068.5,2068.2,0.39058819]
[1773482561968,0.48569393,2068.4,2068.2,0.0011]
[1773482562150,0.48569393,2068.4,2068.0,0.0011]
[1773482564070,0.48569393,2068.4,2068.1,0.38948819]
[1773482564569,0.48569393,2068.4,2068.0,0.0011]
[1773482566169,0.48669393,2068.3,2068.0,0.0011]
[1773482566344,0.48669393,2068.3,2068.1,0.0011]
[1773482566539,1.69542046,2068.3,2068.1,0.0011]
[1773482566745,0.48669393,2068.3,2068.1,0.0011]
[1773482568772,1.69546363,2068.3,2068.1,0.0011]
[1773482572174,0.48669393,2068.3,2068.1,0.0011]
[1773482572474,0.001,2068.3,2068.1,0.39058819]
[1773482576463,0.001,2068.3,2068.1,0.43894175]
[1773482576850,0.001,2068.5,2068.3,0.38948819]
[1773482577460,0.46212871,2068.9,2068.2,0.38948819]
[1773482578083,0.46212871,2068.9,2068.3,0.0011]
[1773482578861,0.46212871,2068.7,2068.3,0.0011]
[1773482580987,0.46212871,2068.6,2068.3,0.0011]
[1773482581189,1.20838882,2068.9,2068.3,0.39058819]
[1773482581576,1.67051753,2068.9,2068.3,0.39058819]
[1773482582992,1.67051753,2068.9,2068.3,1.20978]
[1773482583200,1.67051753,2068.9,2068.4,0.38948819]
[1773482584971,1.67052018,2068.9,2068.4,0.38948819]
[1773482585166,1.67052018,2068.9,2068.5,0.38948819]
[1773482585487,0.46212871,2068.9,2068.5,0.38948819]
[1773482585684,1.67147039,2069.0,2068.5,0.38948819]
[1773482589693,1.67147039,2069.0,2068.6,0.39748904]
[1773482590021,0.001,2068.8,2068.6,0.39748904]
[1773482591011,0.001,2069.0,2068.7,0.39538904]
[1773482591189,1.20931516,2069.0,2068.7,0.39538904]
[1773482593807,0.51048983,2068.9,2068.4,0.0011]
[1773482595612,0.46212871,2068.7,2068.4,0.39648904]
[1773482597002,1.20843,2068.8,2068.4,0.39648904]
[1773482598705,1.20843,2068.8,2068.4,0.44483558]
[1773482601823,1.20843,2068.8,2068.5,0.39538904]
[1773482602298,1.71890109,2068.9,2068.6,0.0011]
[1773482602616,1.71890109,2068.9,2068.4,1.25810886]
[1773482602617,0.49911713,2068.6,2068.4,0.0011]
[1773482603196,0.001,2068.6,2068.4,0.39758904]
[1773482611129,0.001,2068.6,2068.4,1.65458797]
[1773482611339,0.04836112,2068.8,2068.5,0.39648904]
[1773482611508,1.70649242,2068.9,2068.5,0.39648904]
[1773482612117,0.49811713,2068.8,2068.5,0.39648904]
[1773482614037,0.49811713,2068.8,2068.6,0.0011]
[1773482618536,1.75485354,2068.9,2068.6,0.0011]
[1773482618736,1.75485354,2068.9,2068.6,0.40468875]
[1773482621442,1.70649242,2068.9,2068.6,0.40468875]
[1773482624645,0.49811713,2068.9,2068.6,0.40468875]
[1773482625740,0.49811713,2068.9,2068.8,0.0011]
[1773482626046,1.75583625,2069.0,2068.8,0.0011]
[1773482627650,1.75583625,2069.0,2068.6,0.40468875]
[1773482628449,0.47347074,2068.9,2068.6,0.40468875]
[1773482628850,0.47347074,2068.9,2068.6,0.0011]
[1773482629958,1.68185438,2068.9,2068.6,0.0011]
[1773482634159,1.68185438,2068.9,2068.6,0.36416281]
[1773482636058,1.20838364,2068.9,2068.6,0.36416281]
[1773482636361,0.001,2069.0,2068.7,0.36306281]
[1773482636546,0.53650108,2069.0,2068.7,0.36306281]
[1773482636752,1.74483431,2069.0,2068.7,0.36306281]
[1773482637134,0.53650108,2069.0,2068.7,0.32224268]
[1773482637458,0.48813996,2069.0,2068.7,0.28142256]
[1773482637856,0.48813996,2069.0,2068.8,0.0011]
[1773482638160,0.001,2068.8,2068.7,0.28142256]
[1773482639465,0.001,2069.0,2068.8,0.28142256]
[1773482639959,0.001,2069.0,2068.8,0.24060253]
[1773482640156,0.001,2069.0,2068.8,0.15896247]
[1773482641562,0.001,2069.3,2068.9,0.15896247]
[1773482643548,0.001,2069.3,2069.1,0.15896247]
[1773482643748,0.48813996,2069.3,2069.0,0.15896247]
[1773482645354,0.04936112,2069.5,2069.0,0.15896247]
[1773482646672,0.53650108,2069.5,2069.1,1.20825479]
[1773482646861,0.53650108,2069.5,2069.2,0.15896247]
[1773482647733,0.48813996,2069.5,2069.2,0.15896247]
[1773482649583,0.48813996,2069.5,2069.2,1.36823437]
[1773482649766,0.001,2069.5,2069.3,0.15896247]
[1773482654358,0.001,2069.5,2069.2,0.04942785]
[1773482654359,0.48813996,2069.5,2069.2,0.04942785]
[1773482654560,0.53550108,2069.4,2069.2,0.0011]
[1773482654789,0.53550108,2069.4,2069.0,0.0011]
[1773482656088,0.53550108,2069.4,2069.0,0.16006247]
[1773482658489,0.53550108,2069.4,2069.0,1.36835992]
[1773482661897,0.53550108,2069.4,2069.2,0.0011]
[1773482662772,0.04836112,2069.4,2069.2,0.11953654]
[1773482662970,0.04936112,2069.5,2069.2,0.11953654]
[1773482663384,0.53728767,2069.5,2069.2,0.11953654]
[1773482664270,0.48792655,2069.4,2069.2,0.0011]
[1773482668203,0.48792655,2069.4,2068.9,0.11953654]
[1773482671002,0.48792655,2069.4,2069.0,1.20831319]
[1773482671303,0.48792655,2069.4,2069.0,1.32784973]
[1773482673788,0.48792655,2069.4,2069.1,0.0011]
[1773482673981,0.001,2069.2,2069.1,0.0011]
[1773482674307,0.48792655,2069.4,2069.1,0.0011]
[1773482676808,0.48792655,2069.2,2068.9,0.0011]
[1773482680590,0.48792655,2069.1,2068.9,0.0011]
[1773482697326,0.48198269,2069.2,2068.9,0.0011]
[1773482697539,0.48098269,2069.0,2068.7,0.0011]
[1773482697828,0.48198269,2068.9,2068.5,0.0011]
[1773482699728,0.48205621,2068.8,2068.5,0.0011]
[1773482701714,0.48205621,2068.7,2068.5,0.0011]
[1773482702026,0.001,2068.9,2068.5,0.03698756]
[1773482702212,0.001,2068.9,2068.7,0.03588756]
[1773482702925,0.53141733,2069.2,2068.8,0.03588756]
[1773482703120,0.001,2069.2,2068.8,0.03588756]
[1773482704006,0.001,2069.2,2069.0,0.03588756]
[1773482709140,0.001,2069.2,2069.0,1.24420023]
[1773482709434,0.001,2069.2,2069.1,0.0011]
[1773482718925,0.04836112,2069.4,2069.1,0.03698756]
[1773482721215,0.49024224,2069.3,2069.1,0.0011]
[1773482721827,0.001,2069.2,2069.1,0.0011]
[1773482722022,0.49024224,2069.3,2069.1,0.0011]
[1773482722245,0.53860336,2069.4,2069.1,0.0011]
[1773482722744,0.53860336,2069.4,2069.1,0.03698756]
[1773482723544,1.2090215,2069.5,2069.2,0.03588756]
[1773482723545,0.001,2069.5,2069.2,0.03588756]
[1773482725337,0.001,2069.5,2069.2,1.24407764]
[1773482726147,0.001,2069.5,2069.3,0.0289421]
[1773482734583,0.001,2069.5,2069.3,0.0300421]
[1773482736866,0.41994806,2069.6,2069.3,0.07836762]
[1773482737850,0.41994806,2069.6,2069.3,0.0011]
[1773482737851,0.53860336,2069.5,2069.3,0.0011]
[1773482742972,0.49024224,2069.5,2069.3,0.0011]
[1773482744695,0.04836112,2069.6,2069.3,0.12469903]
[1773482744976,1.69818492,2069.7,2069.3,0.12469903]
[1773482745378,0.04836112,2069.6,2069.3,0.12469903]
[1773482746968,0.04836112,2069.6,2069.4,0.0011]
[1773482749873,0.52541877,2069.6,2069.4,0.0011]
[1773482750270,1.73338346,2069.6,2069.4,0.0011]
[1773482751577,0.52541877,2069.6,2069.4,0.0011]
[1773482752258,0.04836112,2069.6,2069.4,0.11701621]
[1773482754654,0.04836112,2069.6,2069.4,0.0011]
[1773482756797,0.54320232,2069.6,2069.4,0.0011]
[1773482759086,1.75118314,2069.6,2069.4,0.0011]
[1773482760286,1.75118314,2069.6,2069.3,0.11701621]
[1773482760666,0.4948412,2069.5,2069.3,0.0011]
[1773482775208,1.70288834,2069.5,2069.3,0.0011]
[1773482775372,0.4948412,2069.4,2069.3,0.0011]
[1773482776007,0.4948412,2069.4,2069.1,1.32526248]
[1773482780313,0.4948412,2069.4,2069.1,0.11701621]
[1773482780479,0.4948412,2069.4,2069.1,0.0011]
[1773482780680,0.4948412,2069.3,2069.1,0.0011]
[1773482781481,0.4948412,2069.3,2069.0,1.20941087]
[1773482781690,0.4948412,2069.3,2069.0,0.0011]
[1773482782206,0.49534957,2069.2,2069.0,0.0011]
[1773482788990,0.49534957,2069.2,2068.9,0.0011]
[1773482789412,0.49534957,2069.2,2068.8,0.0011]
[1773482789413,0.49434957,2069.1,2068.8,0.0011]
[1773482790721,0.001,2069.2,2068.9,0.10966313]
[1773482790922,0.49534957,2069.2,2068.8,1.20948725]
[1773482791625,0.49534957,2069.2,2068.8,1.25782445]
[1773482791835,0.49534957,2069.2,2068.8,1.36748758]
[1773482793030,0.49534957,2069.2,2068.8,1.25782445]
[1773482793328,0.54371069,2069.2,2068.8,1.25782445]
[1773482793891,0.54371069,2069.2,2069.1,0.0011]
[1773482794995,1.75190709,2069.2,2069.1,0.0011]
[1773482795936,0.54371069,2069.2,2069.1,0.0011]
[1773482799308,0.49534957,2069.2,2069.1,0.0011]
[1773482814042,1.20919855,2069.2,2068.9,0.0011]
[1773482814220,0.50752774,2069.1,2068.9,0.0011]
[1773482817548,0.001,2069.0,2068.9,0.0011]
[1773482821140,0.001,2069.0,2068.9,0.11186313]
[1773482821533,0.001,2069.0,2068.9,0.16019799]
[1773482822549,0.04936112,2069.2,2068.9,1.36856958]
[1773482822742,0.001,2069.2,2068.9,1.25780645]
[1773482822924,0.001,2069.2,2069.0,0.11076313]
[1773482829461,0.46016662,2069.2,2069.0,0.0011]
[1773482838044,0.001,2069.2,2069.0,0.24598331]
[1773482840657,0.001,2069.2,2069.0,1.45427514]
[1773482840968,0.04836112,2069.5,2069.2,0.24488331]
[1773482841156,0.04836112,2069.6,2069.2,0.24488331]
[1773482841355,0.52222415,2069.6,2069.2,0.24598331]
[1773482843248,1.73023098,2069.6,2069.2,0.24598331]
[1773482844251,1.73019741,2069.6,2069.2,0.24598331]
[1773482848292,1.25633438,2069.6,2069.2,0.24598331]
[1773482848458,1.25633438,2069.6,2069.3,0.24488331]
[1773482850385,0.04836112,2069.6,2069.3,0.24488331]
[1773482851587,1.25632732,2069.6,2069.3,0.24488331]
[1773482851762,0.04836112,2069.6,2069.3,0.24488331]
[1773482852687,1.68180699,2069.7,2069.3,0.24488331]
[1773482853183,0.001,2069.4,2069.3,0.29320883]
[1773482853382,1.68180699,2069.7,2069.3,0.29320883]
[1773482854088,0.47386303,2069.7,2069.4,1.45296294]
[1773482854390,1.68176768,2069.7,2069.4,0.24488331]
[1773482857384,0.47087117,2069.9,2069.5,0.24488331]
[1773482857590,0.51923229,2069.8,2069.4,0.24488331]
[1773482858796,0.51923229,2069.8,2069.3,1.20809325]
[1773482860998,0.47087117,2069.7,2069.3,1.20809325]
[1773482863093,0.47087117,2069.7,2069.3,0.25169638]
[1773482865194,0.47087117,2069.7,2069.5,0.0011]
[1773482868497,0.46142821,2069.6,2069.3,0.0011]
[1773482868702,0.50978933,2069.6,2069.3,0.0011]
[1773482875713,0.49312196,2069.5,2069.0,0.0011]
[1773482877489,0.49312196,2069.3,2069.0,0.0011]
[1773482880291,0.49312196,2069.1,2069.0,0.0011]
[1773482880805,0.49312196,2069.1,2068.8,0.0011]
[1773482882502,0.49312196,2069.0,2068.8,0.0011]
[1773482886383,0.49312196,2068.9,2068.8,0.0011]
[1773482888213,0.0189,2068.8,2068.7,0.0011]
[1773482889798,0.0199,2068.8,2068.7,0.0011]
[1773482890585,0.51302196,2068.8,2068.7,0.0011]
[1773482895718,0.51302196,2068.8,2068.4,0.0011]
[1773482895719,0.49312196,2068.7,2068.4,0.0011]
[1773482895918,0.49312196,2068.7,2068.3,0.0011]
[1773482896887,0.54148308,2068.7,2068.3,0.0011]
[1773482897588,1.20854684,2068.6,2068.3,0.0011]
[1773482897833,1.7016688,2068.6,2068.3,0.0011]
[1773482900107,0.49312196,2068.6,2068.3,0.0011]
[1773482901616,0.49312196,2068.6,2068.5,0.0011]
[1773482906540,1.7016688,2068.6,2068.5,0.0011]
[1773482906740,0.46162745,2068.5,2068.3,0.0011]
[1773482906919,0.50998857,2068.5,2068.3,0.0011]
[1773482909140,0.04836112,2068.6,2068.3,0.22497488]
[1773482910418,0.0199,2068.8,2068.5,0.22387488]
[1773482910930,0.48152745,2068.8,2068.5,0.22387488]
[1773482913420,0.48152745,2068.8,2068.5,0.22497488]
[1773482913816,0.001,2068.6,2068.5,0.22497488]
[1773482915343,0.001,2068.6,2068.5,0.0011]
[1773482917946,0.51098857,2068.6,2068.5,0.0011]
[1773482928851,1.71953541,2068.6,2068.5,0.0011]
[1773482929050,0.46972558,2068.5,2068.2,0.0011]
[1773482930053,0.5180867,2068.4,2068.2,0.0011]
[1773482934058,1.72678333,2068.4,2068.2,0.0011]
[1773482935054,0.49039297,2068.6,2068.2,0.23527403]
[1773482935266,1.20955491,2068.6,2068.2,0.23527403]
[1773482935455,1.69894788,2068.6,2068.2,0.23527403]
[1773482937159,1.69894788,2068.6,2068.4,0.0011]
[1773482939062,1.69894415,2068.6,2068.4,0.0011]
[1773482941262,0.04836112,2068.5,2068.4,0.0011]
[1773482944063,0.53775409,2068.5,2068.4,0.0011]
[1773482944261,1.74635935,2068.5,2068.4,0.0011]
[1773482945860,0.53775409,2068.5,2068.4,0.0011]
[1773482948360,0.04836112,2068.5,2068.4,0.0011]
[1773482967482,0.04936112,2068.6,2068.4,0.0011]
[1773482968364,0.51476412,2068.6,2068.4,0.0011]
[1773482971982,0.04936112,2068.6,2068.4,0.21437496]
[1773482973569,0.04936112,2068.6,2068.5,0.0011]
[1773482980979,0.0199,2068.8,2068.6,0.22199093]
[1773482981204,0.485303,2068.8,2068.5,0.22309093]
[1773482981977,0.465403,2068.7,2068.4,0.0011]
[1773482982181,0.465403,2068.7,2068.1,0.0011]
[1773482982682,0.465403,2068.5,2068.1,0.0011]
[1773482985200,1.67403847,2068.5,2068.1,0.0011]
[1773482985503,0.465403,2068.4,2068.3,0.0011]
[1773482988909,1.6740667,2068.4,2068.3,0.0011]
[1773482990785,0.465403,2068.4,2068.3,0.0011]
[1773482992215,0.001,2068.5,2068.3,0.0011]
[1773482993013,0.001,2068.5,2068.3,0.22309093]
[1773482993782,0.001,2068.5,2068.3,0.0011]
[1773482997356,0.001,2068.5,2068.4,0.0011]
[1773483014709,0.51236641,2068.8,2068.5,0.25879335]
[1773483014923,0.0199,2068.8,2068.5,0.25879335]
[1773483015734,0.49246641,2069.2,2068.5,0.25879335]
[1773483016235,0.49246641,2069.2,2068.7,0.25879335]
[1773483018632,0.49246641,2069.2,2068.8,1.20843]
[1773483020336,0.49246641,2069.2,2068.8,0.25879335]
[1773483020636,0.001,2069.0,2068.8,0.25879335]
[1773483022939,0.001,2069.0,2068.8,1.4671821]
[1773483029725,0.49865575,2069.4,2068.9,0.25779335]
[1773483030239,0.49865575,2069.4,2069.0,1.46610654]
[1773483032237,0.49865575,2069.4,2069.0,1.20941319]
[1773483032546,0.001,2069.2,2069.1,0.25779335]
[1773483036453,0.001,2069.2,2069.1,1.46604814]
[1773483037433,0.001,2069.2,2069.1,1.20825479]
[1773483041248,4.83180902,2069.7,2069.1,1.20825479]
[1773483041249,0.49765575,2069.7,2069.1,1.46604814]
[1773483041437,0.49765575,2069.6,2069.1,1.46604814]
[1773483045140,0.49765575,2069.6,2069.2,0.0011]
[1773483045456,0.001,2069.4,2069.2,0.0011]
[1773483050769,0.47287211,2069.4,2069.2,0.0011]
[1773483052465,0.47287211,2069.4,2069.0,1.20936616]
[1773483053074,0.47287211,2069.4,2069.0,0.0011]
[1773483055160,0.47287211,2069.4,2069.0,0.49700536]
[1773483056973,0.47287211,2069.4,2069.2,0.0011]
[1773483057168,0.001,2069.4,2069.2,1.70519365]
[1773483058354,0.001,2069.4,2069.2,0.49700536]
[1773483063058,0.001,2069.4,2069.2,1.70516137]
[1773483063266,0.001,2069.4,2069.3,0.49590536]
[1773483063488,0.47648438,2069.6,2069.3,0.49590536]
[1773483064764,0.47648438,2069.5,2069.2,0.0011]
[1773483065296,0.47648438,2069.5,2069.2,1.20929632]
[1773483067096,0.47648438,2069.5,2069.2,0.0011]
[1773483068903,0.47648438,2069.5,2069.4,0.0011]
[1773483078493,1.68441488,2069.7,2069.4,0.0011]
[1773483078686,0.47648438,2069.6,2069.4,0.0011]
[1773483088808,1.69195599,2069.7,2069.4,0.0011]
[1773483089183,0.48402549,2069.7,2069.4,0.0011]
[1773483089381,1.69193314,2069.7,2069.4,0.0011]
[1773483090602,1.69193553,2069.7,2069.4,0.46878655]
[1773483091102,0.48402549,2069.7,2069.4,0.46878655]
[1773483091308,1.69193318,2069.7,2069.4,0.46878655]
[1773483091719,1.20790769,2069.7,2069.4,0.46878655]
[1773483091908,1.6918596,2069.9,2069.5,0.46768655]
[1773483092808,0.48402549,2069.9,2069.5,0.46768655]
[1773483093004,1.69181627,2069.9,2069.5,0.46768655]
[1773483093181,0.48402549,2069.8,2069.5,0.46768655]
[1773483093697,0.48402549,2069.8,2069.6,0.0011]
[1773483095311,1.69187764,2069.8,2069.6,0.0011]
[1773483096414,0.48402549,2069.8,2069.6,0.0011]
[1773483102220,0.48402549,2069.7,2069.4,0.0011]
[1773483102816,0.48402549,2069.4,2068.9,0.0011]
[1773483103135,0.76650369,2069.5,2068.9,0.0011]
[1773483103136,0.48402549,2069.2,2068.9,0.0011]
[1773483104006,0.48402549,2069.1,2068.9,0.0011]
[1773483113328,1.6929547,2069.4,2068.9,0.26924772]
[1773483113695,0.48483411,2069.3,2068.9,0.26924772]
[1773483118029,0.48483411,2069.3,2069.1,0.0011]
[1773483121234,1.6929741,2069.3,2069.1,0.0011]
[1773483122130,0.48483411,2069.2,2069.1,0.0011]
[1773483122315,0.48483411,2069.2,2068.9,0.0011]
[1773483130021,0.48483411,2069.2,2069.1,0.0011]
[1773483136947,1.20813999,2069.3,2069.1,0.0011]
[1773483137155,1.69295668,2069.4,2069.1,0.0011]
[1773483137645,1.20812257,2069.4,2069.1,0.0011]
[1773483137845,1.69295668,2069.4,2069.1,0.0011]
[1773483138056,3.49195668,2069.4,2069.1,0.0011]
[1773483138271,3.49191549,2069.4,2069.1,0.0011]
[1773483139140,1.69291549,2069.4,2069.1,0.0011]
[1773483140934,3.49391549,2069.4,2069.1,0.13949552]
[1773483141327,3.49391549,2069.4,2068.6,0.0011]
[1773483141328,0.49404603,2069.2,2068.6,0.0011]
[1773483141860,0.49504603,2069.2,2068.4,0.0011]
[1773483142224,0.49999999,2068.8,2068.1,1.20992778]
[1773483142447,0.49999999,2068.6,2068.1,0.0011]
[1773483143638,0.49999999,2068.5,2068.1,0.0011]
[1773483148734,1.7086105,2068.5,2068.1,0.0011]
[1773483149368,0.49999999,2068.5,2068.1,0.0011]
[1773483150767,1.70860816,2068.5,2068.1,0.0011]
[1773483151057,0.49999999,2068.5,2068.1,0.0011]
[1773483151231,1.70860822,2068.5,2068.1,0.0011]
[1773483151432,0.49999999,2068.5,2068.1,0.0011]
[1773483152348,1.20858228,2068.6,2068.1,0.0011]
[1773483154574,1.20858228,2068.6,2068.3,0.0011]
[1773483155144,0.49999999,2068.6,2068.3,0.0011]
[1773483157534,0.49999999,2068.4,2068.3,0.0011]
[1773483157739,0.49999999,2068.4,2068.1,0.0011]
[1773483159965,0.49944999,2068.3,2068.1,0.0011]
[1773483162444,1.70819069,2068.3,2068.1,0.0011]
[1773483162768,0.49944999,2068.2,2068.1,0.0011]
[1773483168278,0.49889999,2068.1,2067.9,0.0011]
[1773483168446,1.70779747,2068.0,2067.9,0.0011]
[1773483169578,0.49889999,2067.9,2067.7,0.0011]
[1773483170764,0.49889999,2067.8,2067.7,0.0011]
[1773483170960,0.49889999,2067.8,2067.5,0.0011]
[1773483173260,0.49889999,2068.0,2067.6,0.0022]
[1773483173560,0.49889999,2068.1,2067.6,0.0022]
[1773483174689,0.49889999,2068.1,2067.5,0.0011]
[1773483175199,2.27789999,2068.3,2067.7,0.0022]
[1773483175373,3.48662214,2068.3,2067.8,0.0022]
[1773483175688,2.27789999,2068.3,2067.8,0.0022]
[1773483176898,1.779,2068.3,2067.8,0.0022]
[1773483177197,0.49989999,2068.4,2067.8,0.0022]
[1773483177894,1.26736844,2067.9,2067.5,0.0011]
[1773483178065,0.50099999,2067.9,2067.2,1.21042074]
[1773483178266,0.50099999,2067.9,2067.3,0.0011]
[1773483179361,0.49999999,2067.8,2067.3,0.0011]
[1773483180876,0.49889999,2067.7,2067.0,0.0011]
[1773483181067,0.49889999,2067.7,2066.5,0.76736845]
[1773483181068,0.49889999,2067.1,2066.2,1.58205772]
[1773483181379,0.49889999,2066.9,2066.2,1.21294949]
[1773483181694,0.49889999,2066.9,2066.3,0.76956845]
[1773483181875,0.49889999,2066.9,2066.5,0.0022]
[1773483182461,2.3620988,2067.1,2066.5,0.0022]
[1773483182769,0.49889999,2067.0,2066.5,0.0022]
[1773483185089,0.44889999,2067.0,2066.5,0.0522]
[1773483185299,1.65844044,2067.0,2066.4,0.04839334]
[1773483185492,0.49633071,2066.9,2066.3,1.2620593]
[1773483185685,0.49633071,2066.9,2066.3,1.20985366]
[1773483186200,0.49633071,2066.9,2066.2,1.21291056]
[1773483187074,0.49633071,2066.9,2066.2,0.003]
[1773483187498,0.49633071,2066.7,2066.2,0.003]
[1773483189401,0.49633071,2066.7,2066.3,0.0522]
[1773483189570,0.49633071,2067.0,2066.2,1.25834865]
[1773483189769,0.54471468,2067.0,2066.4,0.0011]
[1773483190080,0.50099999,2066.8,2066.2,1.20995063]
[1773483190286,0.50099999,2066.8,2066.2,1.25834865]
[1773483190469,0.001,2066.8,2066.2,1.20995063]
[1773483190792,0.50099999,2066.8,2066.2,1.20995063]
[1773483192381,0.04838397,2066.7,2066.2,1.20995063]
[1773483192704,0.49999999,2066.6,2066.2,1.20995063]
[1773483193902,0.49999999,2066.6,2066.1,0.0011]
[1773483194799,0.04838397,2066.5,2066.1,0.0011]
[1773483196780,0.5571992,2066.5,2066.1,0.0011]
[1773483199911,0.04838397,2066.5,2066.1,0.0011]
[1773483200204,0.50548094,2066.7,2066.1,0.04950036]
[1773483200507,0.50648094,2066.8,2066.1,0.81686881]
[1773483200692,0.50548094,2067.0,2066.3,0.76736845]
[1773483201013,1.22313145,2067.0,2066.3,0.76736845]
[1773483201504,1.22313145,2067.0,2066.4,1.20983352]
[1773483201876,0.71765051,2067.0,2066.4,1.20983352]
[1773483202376,0.001,2066.5,2066.4,1.20983352]
[1773483202576,0.71765051,2067.0,2066.4,1.20983352]
[1773483203699,0.71765051,2067.0,2066.5,0.76736845]
[1773483203907,0.50548094,2067.5,2066.7,0.76736845]
[1773483204309,0.50548094,2067.5,2066.9,0.76736845]
[1773483204500,0.33891356,2067.7,2066.9,0.76736845]
[1773483204501,0.8443945,2067.7,2066.9,0.76736845]
[1773483205815,0.04838397,2067.6,2067.0,1.20948234]
[1773483206209,0.8443945,2067.7,2067.0,1.20948234]
[1773483207604,0.50548094,2067.6,2067.0,1.20948234]
[1773483207800,0.33891356,2067.7,2066.8,4.83792936]
[1773483207801,0.50548094,2067.4,2066.8,1.20959938]
[1773483208124,0.50548094,2067.2,2066.8,1.20959938]
[1773483210597,0.50548094,2067.2,2066.7,4.83852913]
[1773483211922,0.50548094,2067.5,2066.7,4.83852913]
[1773483213627,0.50548094,2067.5,2066.8,0.04838397]
[1773483213824,0.8443945,2067.7,2066.8,0.04838397]
[1773483214230,0.50548094,2067.6,2066.8,0.04838397]
[1773483214614,0.001,2067.0,2066.8,0.04838397]
[1773483214929,0.50548094,2067.6,2066.9,1.20954085]
[1773483215096,0.55386491,2067.6,2067.0,0.04837929]
[1773483216914,0.55386491,2067.6,2066.9,1.20954085]
[1773483217116,0.55386491,2067.6,2066.7,4.83852913]
[1773483217309,0.55386491,2067.6,2066.8,20.662376]
[1773483218033,0.55386491,2067.6,2066.8,20.612376]
[1773483218237,0.55386491,2067.6,2066.8,21.789598]
[1773483219833,0.55386491,2067.6,2067.0,1.22553775]
[1773483221246,0.55386491,2067.6,2067.1,0.01605541]
[1773483222837,0.55386491,2067.6,2067.2,1.20936532]
[1773483223140,0.55386491,2067.6,2067.2,1.25773993]
[1773483224236,0.55386491,2067.6,2067.2,1.26893427]
[1773483225228,0.33891356,2067.7,2067.3,0.01119434]
[1773483225507,0.83331638,2067.7,2067.3,0.01119434]
[1773483226325,0.001,2067.4,2067.3,0.01119434]
[1773483226533,0.83331638,2067.7,2067.3,0.01119434]
[1773483227240,0.83331638,2067.7,2067.4,1.20924833]
[1773483227417,0.83331638,2067.7,2067.4,1.25761826]
[1773483229129,0.001,2067.9,2067.6,1.2203257]
[1773483229641,0.49540282,2067.9,2067.6,1.2203257]
[1773483230239,0.001,2067.9,2067.6,1.20913136]
[1773483230443,0.001,2067.9,2067.7,0.01119434]
[1773483231022,0.001,2067.9,2067.6,1.2203257]
[1773483231224,0.49540282,2067.9,2067.6,1.2203257]
[1773483231827,0.45471741,2068.1,2067.6,1.2203257]
[1773483232023,0.50310138,2068.0,2067.6,1.2203257]
[1773483232222,0.50310138,2068.0,2067.6,1.20913136]
[1773483233920,0.50310138,2068.0,2067.6,0.45740565]
[1773483236555,0.50310138,2068.0,2067.7,1.20907288]
[1773483238653,0.001,2067.8,2067.7,1.20907288]
[1773483238954,0.50310138,2068.0,2067.7,1.20907288]
[1773483242471,0.45471741,2068.2,2067.8,0.45740565]
[1773483242675,0.45471741,2068.2,2067.8,0.50576622]
[1773483243143,0.45471741,2068.2,2067.9,1.20895594]
[1773483243972,0.50310138,2068.1,2067.8,1.20897278]
[1773483245562,0.50310138,2068.1,2067.7,4.83622363]
[1773483246270,0.45471741,2068.1,2067.8,0.50576622]
[1773483248445,0.45471741,2068.1,2067.9,1.20895594]
[1773483250569,0.45471741,2068.1,2067.9,1.21005594]
[1773483254576,0.04838397,2068.3,2068.0,0.45740565]
[1773483254746,0.001,2068.4,2067.9,0.45850565]
[1773483254747,0.50410138,2068.4,2067.9,0.45850565]
[1773483254942,0.45471741,2068.2,2067.9,0.0011]
[1773483256545,0.45471741,2068.2,2067.9,1.66740658]
[1773483257655,0.45471741,2068.2,2067.9,1.71576481]
[1773483258088,0.45571741,2068.4,2068.0,0.45740565]
[1773483258551,0.45571741,2068.4,2067.9,1.25835916]
[1773483258552,0.04838397,2068.3,2067.9,1.25835916]
[1773483258752,0.50310138,2068.3,2067.9,1.25835916]